Cogmind - Beta 12 X1 @@@ ROGUE MODE // 2022.08.23 @ 17:49:30 Player: btmk16 Result: Core destroyed Performance ------------- Evolutions (2) 1000 Regions Visited (5) 1000 Robots Destroyed (14) 70 Value Destroyed (180) 180 Prototype IDs (0) 0 Alien Tech Used (0) 0 Bonus (229) 229 TOTAL SCORE: 2479 Bonus ------- Follower Combat Kills 229 Cogmind --------- Core Integrity 0/550 Matter 300/300 Energy 100/100 System Corruption 0% Temperature Cool (9) Movement Core (50) Location -8/Storage Parts ------- > --- POWER (1) -------- (None) > --- PROPULSION (5) --- (None) > --- UTILITY (3) ------ Visual Processing Unit Improved Signal Interpreter > --- WEAPON (2) ------- (None) > --- INVENTORY (5) ---- Armored Treads Small Storage Unit Small Laser Gauss Rifle Heavy Hammer Peak State ------------ > --- POWER ------------ Light Nuclear Core > --- PROPULSION ------- Flight Unit > --- UTILITY ---------- Advanced Weight Redist. System Visual Processing Unit > --- WEAPON ----------- Field Laser > --- INVENTORY -------- Armored Treads Small Storage Unit Small Laser Gauss Rifle Heavy Hammer [Rating: 13] Favorites ----------- Power Light Ion Engine Engine Light Ion Engine Power Core Light Nuclear Core Propulsion Flight Unit Treads Light Treads Hover Unit Improved Hover Unit Flight Unit Flight Unit Utility Visual Processing Unit Device Seismic Detector Processor Visual Processing Unit Weapon Small Laser Energy Gun Small Laser Build | -11 -10 -9 -9 -8 -8 ------- Run | Scr Mat Mat Min Mat Sto Slots Evolved 4 | . . 2 . 2 . Power . | . . . . . . Propulsion 3 | . . 2 . 1 . Utility 1 | . . . . 1 . Weapon . | . . . . . . Parts Attached 20 | 4 4 4 1 1 6 Power 2 | . 1 . . . 1 Engine 1 | . 1 . . . . Core 1 | . . . . . 1 Reactor . | . . . . . . Propulsion 10 | 2 3 2 1 . 2 Treads 3 | 2 . . . . 1 Leg . | . . . . . . Wheel . | . . . . . . Hover 2 | . . . 1 . 1 Flight 5 | . 3 2 . . . Utility 4 | . . 1 . . 3 Device 2 | . . . . . 2 Storage . | . . . . . . Processor 2 | . . 1 . . 1 Hackware . | . . . . . . Protection . | . . . . . . Artifact . | . . . . . . Weapon 4 | 2 . 1 . 1 . Energy Gun 4 | 2 . 1 . 1 . Energy Cannon . | . . . . . . Ballistic Gun . | . . . . . . Ballistic Cannon . | . . . . . . Launcher . | . . . . . . Special Weapon . | . . . . . . Impact Weapon . | . . . . . . Slashing Weapon . | . . . . . . Piercing Weapon . | . . . . . . Special Melee Weapon . | . . . . . . Unidentified Prototypes . | . . . . . . Parts Lost 14 | . 1 5 . . 8 Power 2 | . . 1 . . 1 Propulsion 7 | . 1 3 . . 3 Utility 2 | . . . . . 2 Weapon 3 | . . 1 . . 2 Highest Loss Streak 5 | . 1 5 . . 5 To Critical Strikes . | . . . . . . Average Slot Usage (%) 47 | . 64 47 49 45 34 Engine 3 | . 9 6 . . . Treads 2 | . 6 . . . 1 Hover 2 | . . . 5 9 2 Flight 12 | . 19 17 11 9 6 Processor 7 | . . 3 11 9 11 Energy Gun 18 | . 28 20 22 18 9 Naked Turns . | . . . . . . Heaviest Build 8 | 3 6 6 2 4 8 Greatest Support 13 | 3 8 12 4 4 13 Greatest Overweight (x) 1 | . . 1 . . 1 Average Overweight (x) . | . . . . . . Largest Inventory Capacity 5 | 5 5 5 5 5 5 Average Capacity 5 | 5 5 5 5 5 5 Most Carried 5 | 5 5 3 3 5 5 Average Carried 4 | 2 4 2 2 4 4 Final Capacity 5 | 5 5 5 5 5 5 Final Carried 5 | 5 4 2 3 5 5 Class Distribution -------------------- 100% | Mutant Dominant Class ---------------- Mutant | -10/Materials Mutant | -9/Materials Mutant | -9/Mines Mutant | -8/Materials Mutant | -8/Storage Resources | -11 -10 -9 -9 -8 -8 ----------- Run | Scr Mat Mat Min Mat Sto Matter Collected 335 | 159 36 . 28 87 25 Remotely . | . . . . . . Salvage Created 259 | . 84 50 . 75 50 Parts 27 | . 12 7 . 7 1 Haulers Intercepted . | . . . . . . Recyclers Shooed . | . . . . . . Parts Field Recycled . | . . . . . . Retrieved Matter . | . . . . . . Parts Self-Destructed . | . . . . . . Prevented . | . . . . . . Kills | -11 -10 -9 -9 -8 -8 ------- Run | Scr Mat Mat Min Mat Sto Combat Hostiles Destroyed 13 | . 6 3 . 3 1 Guns 13 | . 6 3 . 3 1 Classes Destroyed 3 | . 1 . . 1 1 Builder 1 | . . . . 1 . Swarmer 12 | . 6 3 . 3 . Hunter 1 | . . . . . 1 Best Kill Streak 3 | . 3 3 . 3 1 Combat Bots Only 3 | . 3 3 . 3 1 Max Kills in Single Turn 1 | . 1 1 . 1 1 Gunslinging . | . . . . . . Exploded . | . . . . . . Melee . | . . . . . . Uniques/NPCs Destroyed . | . . . . . . Combat | -11 -10 -9 -9 -8 -8 -------- Run | Scr Mat Mat Min Mat Sto Damage Taken 1343 | . 183 280 . 25 855 Core 695 | . 24 111 . 9 551 Absorbed by Shields . | . . . . . . Core Remaining (%) 87 | 100 90 . 72 . . Volleys Fired 29 | . 10 5 . 8 6 Largest 2 | . 2 2 . 2 2 Hottest 103 | . 90 90 . 103 103 Shots Fired 58 | . 20 10 . 16 12 Gun 58 | . 20 10 . 16 12 Cannon . | . . . . . . Launcher . | . . . . . . Special . | . . . . . . Kinetic . | . . . . . . Thermal 58 | . 20 10 . 16 12 Explosive . | . . . . . . Electromagnetic . | . . . . . . Robot Hit Streak 12 | . 3 2 . 6 12 Robot Miss Streak 3 | . 3 2 . 3 . Penetration Max . | . . . . . . Secondary Targets 1 | . 1 . . . . Max Gunslinging Chain 1 | . 1 . . . . Shots Hit Robots 33 | . 8 6 . 8 11 Core Hits 19 | . 7 3 . 5 4 Critical Kills . | . . . . . . Critical Parts Destroyed . | . . . . . . Critical Strikes . | . . . . . . Melee Attacks . | . . . . . . Impact . | . . . . . . Slashing . | . . . . . . Piercing . | . . . . . . Sneak Attacks . | . . . . . . Combat Hostiles . | . . . . . . Follow-up Attacks . | . . . . . . Damage Inflicted 425 | . 95 69 . 105 156 Guns 416 | . 95 69 . 105 147 Cannons . | . . . . . . Explosions . | . . . . . . Melee . | . . . . . . Ramming 9 | . . . . . 9 Kinetic . | . . . . . . Thermal 416 | . 95 69 . 105 147 Explosive . | . . . . . . Electromagnetic . | . . . . . . Impact . | . . . . . . Slashing . | . . . . . . Piercing . | . . . . . . Highest Corruption . | . . . . . . Average Corruption . | . . . . . . Corruption Purged . | . . . . . . Corruption Blocked . | . . . . . . Overload Shots . | . . . . . . Overflow Damage . | . . . . . . Projectiles . | . . . . . . Explosions . | . . . . . . Melee . | . . . . . . Knockbacks . | . . . . . . Impact . | . . . . . . Kinetic . | . . . . . . Secondary . | . . . . . . Self-Inflicted Damage 3 | . . . . . 3 Shots . | . . . . . . Rammed 4 | . . . . . 4 Targets Rammed 4 | . . . . . 4 Kicked . | . . . . . . Crushed . | . . . . . . Highest Temperature 144 | . 144 123 . 25 73 Average Temperature 49 | . 60 56 . 11 36 Received Heat Transfer 465 | . 48 93 . . 324 Siege Activations . | . . . . . . Robots Corrupted . | . . . . . . Combat Hostiles . | . . . . . . Parts Fried . | . . . . . . Impact Corruptions . | . . . . . . Robots Melted . | . . . . . . Combat Hostiles . | . . . . . . Parts Melted 1 | . 1 . . . . Heat Transferred 1017 | . 272 174 . 236 335 Parts Sabotaged . | . . . . . . Parts Stolen . | . . . . . . Parts Stripped . | . . . . . . Power Chain Reactions . | . . . . . . Missiles Intercepted . | . . . . . . Alert | -11 -10 -9 -9 -8 -8 ------- Run | Scr Mat Mat Min Mat Sto Peak Influence 375 | . 196 137 53 263 375 Initial 110 | . . 82 53 20 110 Average 139 | . 112 114 53 159 212 Maximum Alert Level 1 | . . . . 1 1 Low Security (%) 76 | 100 100 100 100 56 47 Level 1 23 | . . . . 43 52 Level 2 . | . . . . . . Level 3 . | . . . . . . Level 4 . | . . . . . . Level 5 . | . . . . . . High Security . | . . . . . . Max Security . | . . . . . . Squads Dispatched 8 | . 4 1 . . 3 Investigation 3 | . 3 . . . . Extermination . | . . . . . . Reinforcement 3 | . 1 1 . . 1 Assault 2 | . . . . . 2 Garrison . | . . . . . . Intercept . | . . . . . . Searches Triggered . | . . . . . . Construction Impeded . | . . . . . . Haulers Reinforced . | . . . . . . Active Scanning Responses . | . . . . . . Cargo Convoy Interrupts . | . . . . . . Stealth | -11 -10 -9 -9 -8 -8 --------- Run | Scr Mat Mat Min Mat Sto Distress Signals 5 | . 1 2 . . 2 Communications Jammed . | . . . . . . Distress Signals . | . . . . . . Times Spotted 67 | . 14 13 . 5 35 Peak Tracking Total 20 | . 8 10 . 3 20 Tactical Retreats 4 | . 1 . . . 3 Traps | -11 -10 -9 -9 -8 -8 ------- Run | Scr Mat Mat Min Mat Sto Traps Triggered 2 | . 1 . . . 1 Indirectly . | . . . . . . Trap Hack Attempts . | . . . . . . Triggered . | . . . . . . Disarmed . | . . . . . . Reprogrammed . | . . . . . . Reused . | . . . . . . Traps Extracted . | . . . . . . Installed . | . . . . . . Triggered . | . . . . . . Machines | -11 -10 -9 -9 -8 -8 ---------- Run | Scr Mat Mat Min Mat Sto Machines Disabled . | . . . . . . Max in Single Turn . | . . . . . . Garrison Access 1 | . . . . . 1 Machines Sabotaged . | . . . . . . Garrisons Compromised . | . . . . . . Overloaded Fab Kills . | . . . . . . Hacking | -11 -10 -9 -9 -8 -8 --------- Run | Scr Mat Mat Min Mat Sto Machines Accessed 6 | . 2 1 . . 3 Terminals 5 | . 2 1 . . 2 Fabricators . | . . . . . . Repair Stations . | . . . . . . Recycling Units . | . . . . . . Scanalyzers . | . . . . . . Garrison Access 1 | . . . . . 1 Total Hacks 13 | . 5 3 . . 5 Successful 7 | . 2 2 . . 3 Failed 6 | . 3 1 . . 2 Catastrophic 3 | . 1 . . . 2 Database Lockouts . | . . . . . . Manual 4 | . . 1 . . 3 Terminals 12 | . 5 3 . . 4 Fabricators . | . . . . . . Repair Stations . | . . . . . . Recycling Units . | . . . . . . Scanalyzers . | . . . . . . Garrison Access 1 | . . . . . 1 Terminal Hacks 4 | . 2 1 . . 1 Branch Access Points 1 | . 1 . . . . Emergency Access Points 1 | . 1 . . . . Zone Layout 2 | . . 1 . . 1 Fabricator Hacks . | . . . . . . Repair Station Hacks . | . . . . . . Recycling Unit Hacks . | . . . . . . Scanalyzer . | . . . . . . Garrison Access Hacks 1 | . . . . . 1 Seal Access 1 | . . . . . 1 Unauthorized Hacks 2 | . . 1 . . 1 Terminals 2 | . . 1 . . 1 Botnet 2 | . . 1 . . 1 Fabricators . | . . . . . . Repair Stations . | . . . . . . Recycling Units . | . . . . . . Scanalyzers . | . . . . . . Garrison Access . | . . . . . . Data Cores Recovered . | . . . . . . Used . | . . . . . . Hacking Detections 5 | . 2 1 . . 2 Full Trace Events 2 | . 2 . . . . Feedback Events . | . . . . . . Feedback Blocked . | . . . . . . Robot Schematics Acquired . | . . . . . . Robots Built . | . . . . . . Authchips . | . . . . . . Time . | . . . . . . Total Robot Build Rating . | . . . . . . Part Schematics Acquired . | . . . . . . Parts Built . | . . . . . . Authchips . | . . . . . . Time . | . . . . . . Total Part Build Rating . | . . . . . . Parts Repaired . | . . . . . . Time . | . . . . . . Parts Recycled . | . . . . . . Recycled Matter . | . . . . . . Retrieved Matter . | . . . . . . Retrieved Components . | . . . . . . Parts Scanalyzed . | . . . . . . Part Schematics Acquired . | . . . . . . Parts Damaged . | . . . . . . Bothacking | -11 -10 -9 -9 -8 -8 ------------ Run | Scr Mat Mat Min Mat Sto Used RIF Installer . | . . . . . . Robots Hacked . | . . . . . . Non-combat . | . . . . . . Combat . | . . . . . . Robot Hacks Applied . | . . . . . . Relay Couplers Released . | . . . . . . Fabnet Peak Effective % . | . . . . . . Robots Rewired . | . . . . . . Allies Hacked . | . . . . . . Hacks Repelled . | . . . . . . Allies | -11 -10 -9 -9 -8 -8 -------- Run | Scr Mat Mat Min Mat Sto Total Allies 5 | . . . 3 . 2 Largest Group 3 | . . . 3 3 2 Highest-Rated Group 62 | . . . 40 40 62 Highest-Rated Ally 31 | . . . 16 16 31 Total Orders . | . . . . . . Ally Attacks 37 | . . . . 27 10 Total Damage 559 | . . . . 395 164 Kills 7 | . . . . 5 2 Allies Corrupted . | . . . . . . Allies Melted 2 | . . . . . 2 Intel | -11 -10 -9 -9 -8 -8 ------- Run | Scr Mat Mat Min Mat Sto Robot Analysis Total . | . . . . . . Derelict Logs Recovered . | . . . . . . Drone Launches . | . . . . . . Drone Recoveries . | . . . . . . Exploration | -11 -10 -9 -9 -8 -8 ------------- Run | Scr Mat Mat Min Mat Sto Turns Passed 538 | 26 125 73 56 95 163 Spaces Moved 950 | 31 210 130 107 166 306 Core 151 | 31 36 1 . . 83 Treads . | . . . . . . Legs . | . . . . . . Wheels . | . . . . . . Hover 3 | . . . . . 3 Flight 796 | . 174 129 107 166 220 Fastest Speed 34 | 50 37 34 40 40 40 Average Speed 40 | 50 39 38 40 40 43 Slowest Speed 120 | 50 50 100 40 40 120 Overloaded Moves . | . . . . . . Propulsion Burnouts . | . . . . . . Robots Hopped 22 | . 4 . 2 2 14 Cave-ins Triggered . | . . . . . . Exploration Rate (%) 31 | 3 56 18 30 17 64 Regions Visited 5 Branch Regions 2 Pre-discovered Areas . | . . . . . . Known Exits Taken . | . . . . . . Unknown Exits Taken 5 | 1 1 1 1 1 . Scrap Searched 1 | . . . 1 . . Spaces Dug . | . . . . . . Terrain Destroyed . | . . . . . . Melee . | . . . . . . Projectile . | . . . . . . AOE . | . . . . . . Terrain Rammed . | . . . . . . Walls Destroyed . | . . . . . . Machines Disabled . | . . . . . . Actions | -11 -10 -9 -9 -8 -8 --------- Run | Scr Mat Mat Min Mat Sto Total 1010 | 39 228 141 117 175 310 Wait 18 | . 2 3 11 2 . Move 902 | 30 201 129 102 161 279 Hop 21 | . 4 . 2 2 13 Pick Up 11 | 5 3 . 1 1 1 Fast Attach 14 | 4 2 2 1 . 5 Attach 5 | . 2 2 . . 1 Detach 1 | . . . . . 1 Swap 1 | . . . . 1 . Drop 5 | . 4 . . . 1 Fire 29 | . 10 5 . 8 6 Melee . | . . . . . . Ram 3 | . . . . . 3 Kick . | . . . . . . Crush . | . . . . . . Escape Stasis . | . . . . . . Rewire . | . . . . . . Trap . | . . . . . . Miscellaneous . | . . . . . . Route ------- -11/Scrapyard -10/Materials (discovered 2 exits: *Mat / *Min) -9/Materials -9/Mines -8/Materials -8/Storage History --------- Turn | Location | Event 20 | -11/Scrapyard | Discovered new exit (range 15) 27 | -11/Scrapyard | Entered Materials 112 | -10/Materials | Identified exit to Mines 150 | -10/Materials | Discovered new exit (range 6) 152 | -10/Materials | Entered another Materials area 152 | -9/Materials | Evolved 2 slots: Propulsion x2 223 | -9/Materials | Discovered new exit (range 6) 224 | -9/Materials | Lost 5 parts (1p3n1w) 225 | -9/Materials | Entered Mines 242 | -9/Mines | Assisted by bots powering up and referring to "LRC-V3" 268 | -9/Mines | Discovered new exit (range 7) 281 | -9/Mines | Entered Materials 281 | -8/Materials | Accompanied by 3 allies 281 | -8/Materials | Evolved 2 slots: Propulsion x1, Utility x1 311 | -8/Materials | Build established: Mutant 367 | -8/Materials | Discovered new exit (range 9) 376 | -8/Materials | Entered Storage 479 | -8/Storage | Met a pair of Derelict thieves 491 | -8/Storage | Core integrity fell below 50% 521 | -8/Storage | Lost 5 parts (1p1n1u2w) 538 | -8/Storage | Core integrity fell below 20% 539 | -8/Storage | Core destroyed Last Messages --------------- 00513_ Acquired Airjet. 00525_ Triggered Explosive Trap. 00525_ An explosion rips through the floor. 00525_ Seismic Detector destroyed. 00527_ C-30 ARC bursts open, deploying its payload. 00527_ G-50 Soldier unfolds itself. 00527_ L-31 Rogue unfolds itself. 00527_ G-47 Trooper unfolds itself. 00527_ C-30 ARC bursts open, deploying its payload. 00527_ G-50 Soldier unfolds itself. 00527_ G-47 Trooper unfolds itself. 00534_ W-25 Informer sends out distress signal. 00536_ Slammed into G-50 Soldier. 00537_ K-01 Serf collects debris. 00537_ Airjet destroyed. 00537_ Critical hit (Burn: +37). 00537_ Slammed into G-50 Soldier. 00537_ Destabilizing: Core damaged (-27). 00538_ Slammed into G-50 Soldier. 00539_ Destabilizing: Core damaged (-27). Map ----- +----------------------------------------------------+ | ????????????????????????????????????? | | ????????????????????????????????????? | | ????????????????????????????????????? | | ????????????????????????????????????? | | ????????????????????????????????????? | | ????????????????????????????????????? | | ???????????????????????????????????## | | ???????????????????????????????????# | | ???????????????????????????????????# | | ??????????###########??????????????# | | ??????????# #??????????????## | | ??????????# #???????????????# | | ??????????# ##??????????????# | | ??????????# #??????????????# | | ??????????# """ """ #???????????????# | | ??????????# """ """ #???????????????# | | ??????????# """ """ #???????????????# | | ??????????# #???????????????# | | ??????????#####+##########??????????# | | ?????????????# + #??????????# | | ?????????????# # #??????????# | | ?????????????# + """""" #######????# | | # ???????????# # "???????# ! ###### | | # ######## # "???????# !! #T## | | # k i bggYgwl# "???????# "[!#* | | ??????###igg@l # ???????#! %/== | | ???????## ## ## ???????# ! " !#%! | | ?????### ## ## ???????# ! !# # | | # Y ## ####???????########## | | # ## #???????????????????# | | # """ ## #?###?????########### | | # """ # ###+###T####### # | | # """ # # # """" + | | # ?# # """ """ """ # "??" # | | # """ ?# # """ """ """ # "??" # | | # """ # # """ """ """ # "??" # | | # """ + + # "??" # | | # # # # """" # | | ??#"Y"??# ###T###+####### # | | ??#"????# T?###?# ########+######## | | ????????# ##????# | | ????????""""?????###+######/######### | | ??????????????????? T??? ??????? | | ??????????????????? "#??# #???? | | ??????????????????[[????# #??# | | ??????????????????[[????# #??# | | ?????????????????###????# #?# | | ????????????????????????# #?## | | ????????????????????????########??# | | ??????????????????????????????????### | +----------------------------------------------------+ Best States ------------- Heat Dissipation 31 Energy Generation 14 Energy Capacity 160 Matter Stores 300 Matter Capacity 300 Sight Range 18 Terrain Scan Density 10 Additional Mass Support 9 Evasion (%) 63 Recoil Reduction 2 Item Schematics ----------------- None Robot Schematics ------------------ None Fabricated ------------ Nothing Alien Tech Used ----------------- None Achievements -------------- None Challenges ------------ None Game ------ Seed MakeshiftDrainedAccelerator Manual? 0 Play Time 00:11:58 Cumulative 467.3 hours Start 2022.08.23 @ 17:40:35 End 2022.08.23 @ 17:49:30 Sessions 1 Manual Loads 0 Difficulty Rogue Special Mode None Game No. 517 Rogue 516 Adventurer 0 Explorer 1 Win Type - Total 14 Types 9/0/2/3/0/0/0/0/0 Lore% 79 Gallery% 88 Achievement% 69 Wizard Run 0 Options --------- ASCII 0 Keyboard 1 Movement Vi Keybinds 0 Fullscreen 1 Font 18/SmallcapsGlow Map View 76x50 Tactical HUD 1 Map Filters NONE Filters NONE Steam 1 RUN: 6ffb63ae-f2d0-4580-89b6-1ed03a67cd7f